Cogmind - Beta 15 @@@ ROGUE MODE // 2025.06.19 @ 22:54:27 Player: naththebg Result: Self-destructed Performance ------------- Evolutions (8) 4000 Regions Visited (24) 4800 Robots Destroyed (143) 715 Value Destroyed (5023) 5023 Prototype IDs (79) 1580 Alien Tech Used (2) 400 Bonus (2950) 2950 TOTAL SCORE: 19468 Bonus ------- High Alert Combat Kills 273 Follower Combat Kills 341 Registered with UFD 300 Met Optimus in HQ 500 Met Data Miner 300 Met Zhirov 300 Met Optimus at Protoforge 1000 Friendly Fire -64 Cogmind --------- Core Integrity 424/1450 Matter 300/300 Energy 350/350 System Corruption 0% Temperature Cool (0) Movement Rolling (80) Ox1 Location -2/Protoforge Parts ------- > --- POWER (2) -------- Improved Quantum Reactor > --- PROPULSION (6) --- Overtuned Huge Scrapsphere Overtuned Huge Scrapsphere Overtuned Huge Scrapsphere > --- UTILITY (10) ----- 0bPrime Scrap Suit Makeshift Coolant Network Light Humpback Experimental Core Analyzer Experimental Kinecellerator Experimental Kinecellerator > --- WEAPON (5) ------- Improved Heavy Laser Precision Phase Gun > --- INVENTORY (25) --- Overtuned Medium Treads Enhanced Biometal Leg Experimental Heat Sink Advanced Kinecellerator Makeshift Medium Armor Plating Subatomic Replicator UFD Drillbomb Peak State ------------ > --- POWER ------------ Light Antimatter Reactor Improved Quantum Reactor > --- PROPULSION ------- Overtuned Huge Scrapsphere Overtuned Huge Scrapsphere Overtuned Huge Scrapsphere > --- UTILITY ---------- 0bPrime Scrap Suit Makeshift Coolant Network Light Humpback Experimental Core Analyzer Experimental Kinecellerator Experimental Kinecellerator > --- WEAPON ----------- Improved Heavy Laser Precision Phase Gun Concept XC Strikerail Concept XC Strikerail > --- INVENTORY -------- Overtuned Medium Treads Enhanced Biometal Leg Experimental Heat Sink Advanced Kinecellerator Makeshift Medium Armor Plating Subatomic Replicator UFD Drillbomb [Rating: 174] Favorites ----------- Power Micro Fission Core Engine Cooled Ion Engine Power Core Micro Fission Core Reactor Light Antimatter Reactor Propulsion Improved Flight Unit Treads Light Treads Leg Aluminum Leg Wheel Compact Wheel Flight Unit Improved Flight Unit Utility Medium Storage Unit Device Improved Reaction Control System Storage Medium Storage Unit Processor Experimental Core Analyzer Hackware Improved System Shield Protection Improved Utility Shielding Weapon Advanced Beam Cannon Energy Gun Small Laser Energy Cannon Advanced Beam Cannon Ballistic Gun Concept XC Strikerail Ballistic Cannon Heavy Gauss Cannon Launcher Mini Grenade Launcher Special Weapon Improved Remote Datajack Impact Weapon Impact Mace Slashing Weapon Axe Piercing Weapon Spear Special Melee Weapon Improved Datajack Build | -11 -10 -10 -9 -9 -9 -9 -6 -6 -6 -6 -5 -5 -5 -5 -5 -4 -4 -4 -4 -3 -3 -2 -2 -2 ------- Run | Yrd Mat Min Mat Sto Rec Scr Fac Low Low Dat Pro Fac Upp Upp Zhi Pro Fac Was Fac Res Tes Res Qua Frg Slots Evolved 16 | . . . 2 . . . 6 . . . . 2 . . . . 2 . . 2 . 2 . . Power 1 | . . . . . . . . . . . . 1 . . . . . . . . . . . . Propulsion 4 | . . . 1 . . . 2 . . . . . . . . . 1 . . . . . . . Utility 8 | . . . 1 . . . 4 . . . . 1 . . . . 1 . . 1 . . . . Weapon 3 | . . . . . . . . . . . . . . . . . . . . 1 . 2 . . Parts Attached 179 | 6 1 2 26 10 3 11 17 . . . 1 14 1 . 5 . 14 3 9 14 2 7 7 26 Power 22 | 1 . . 4 1 . 1 3 . . . . 2 . . 1 . . . 1 2 . 1 1 4 Engine 8 | 1 . . 4 1 . . 2 . . . . . . . . . . . . . . . . . Core 6 | . . . . . . 1 1 . . . . 2 . . . . . . 1 . . . . 1 Reactor 8 | . . . . . . . . . . . . . . . 1 . . . . 2 . 1 1 3 Propulsion 62 | 2 . 1 11 3 2 4 5 . . . . 3 . . 1 . 9 2 5 3 . 3 3 5 Treads 5 | . . . 2 . . . . . . . . . . . . . . . . 1 . . . 2 Leg 3 | 2 . . . . . . . . . . . . . . 1 . . . . . . . . . Wheel 15 | . . 1 9 2 . . . . . . . . . . . . . . . . . . . 3 Hover . | . . . . . . . . . . . . . . . . . . . . . . . . . Flight 39 | . . . . 1 2 4 5 . . . . 3 . . . . 9 2 5 2 . 3 3 . Utility 66 | 1 1 . 6 4 1 4 7 . . . . 8 . . 3 . 3 1 3 7 1 3 1 12 Device 36 | . . . 5 3 1 2 1 . . . . 4 . . 1 . 2 1 3 3 . 1 1 8 Storage 6 | 1 1 . . 1 . 1 . . . . . . . . 1 . . . . . . . . 1 Processor 8 | . . . . . . 1 2 . . . . . . . . . . . . 1 1 1 . 2 Hackware 7 | . . . . . . . 1 . . . . 3 . . . . 1 . . 1 . 1 . . Protection 9 | . . . 1 . . . 3 . . . . 1 . . 1 . . . . 2 . . . 1 Artifact . | . . . . . . . . . . . . . . . . . . . . . . . . . Weapon 29 | 2 . 1 5 2 . 2 2 . . . 1 1 1 . . . 2 . . 2 1 . 2 5 Energy Gun 7 | 2 . . 3 . . . . . . . . . . . . . . . . . . . . 2 Energy Cannon 5 | . . . 2 2 . . . . . . . . . . . . . . . . . . . 1 Ballistic Gun 3 | . . 1 . . . . . . . . . . . . . . . . . . . . . 2 Ballistic Cannon 3 | . . . . . . . . . . . . . . . . . 1 . . . . . 2 . Launcher 2 | . . . . . . 1 . . . . . . 1 . . . . . . . . . . . Special Weapon 2 | . . . . . . . . . . . 1 . . . . . 1 . . . . . . . Impact Weapon 2 | . . . . . . . 1 . . . . . . . . . . . . . 1 . . . Slashing Weapon 1 | . . . . . . . . . . . . . . . . . . . . 1 . . . . Piercing Weapon 2 | . . . . . . 1 1 . . . . . . . . . . . . . . . . . Special Melee Weapon 2 | . . . . . . . . . . . . 1 . . . . . . . 1 . . . . Unidentified Prototypes 30 | . . . 4 1 . . 2 . . . . 1 . . 5 . 1 . 1 4 1 3 1 6 Parts Lost 59 | . . 3 6 . 1 . 2 . . . . 3 . . . . 7 . 12 4 . 1 . 20 Power 7 | . . . . . . . 1 . . . . . . . . . . . 2 2 . . . 2 Propulsion 27 | . . 2 6 . 1 . 1 . . . . 2 . . . . 2 . 7 . . . . 6 Utility 18 | . . . . . . . . . . . . . . . . . 4 . 3 2 . 1 . 8 Weapon 7 | . . 1 . . . . . . . . . 1 . . . . 1 . . . . . . 4 Highest Loss Streak 10 | . . 2 2 . 1 . 2 . . . . 1 . . . . 2 . 4 2 . 1 . 10 To Critical Strikes 1 | . . . 1 . . . . . . . . . . . . . . . . . . . . . Average Backups 9 | 3 6 8 8 13 15 13 8 10 10 10 10 9 8 9 9 9 8 7 7 5 7 7 7 4 Power 1 | . 1 1 1 1 2 1 1 1 1 1 1 1 2 2 2 2 1 1 1 . 1 . . . Propulsion 3 | 1 4 3 2 6 7 6 3 3 3 3 3 2 2 2 2 2 1 3 2 1 2 3 2 1 Utility 3 | . . 3 3 4 5 4 3 4 4 4 4 3 4 4 3 3 1 . 1 2 2 2 3 2 Weapon 1 | . 1 . 1 1 1 . 1 2 2 2 2 1 . 1 1 1 1 1 1 . 1 1 1 . Tool/Special . | . . . . . . . . . . . . . . . . . . . . . . . . . Unused Backups 27 | . . . 5 2 . 6 4 . . . . 3 . . . . . . . 1 . 1 . 5 Power 4 | . . . 2 . . 1 . . . . . 1 . . . . . . . . . . . . Propulsion 8 | . . . . 2 . 3 . . . . . . . . . . . . . 1 . 1 . 1 Utility 11 | . . . 1 . . 2 4 . . . . 2 . . . . . . . . . . . 2 Weapon 3 | . . . 2 . . . . . . . . . . . . . . . . . . . . 1 Tool/Special 1 | . . . . . . . . . . . . . . . . . . . . . . . . 1 Average Slot Usage (%) 79 | . 85 84 88 97 98 88 78 80 80 80 80 73 70 70 69 70 73 73 74 66 82 80 86 59 Engine 4 | . 14 14 11 11 11 10 . . . . . . . . . . . . . . . . . . Core 3 | . . . . . . . 5 6 6 6 6 5 5 5 5 5 9 10 9 4 . . . . Leg 1 | . 28 26 . . . . . . . . . . . . . . . . . . . . . . Wheel 5 | . . . 18 33 16 5 . . . . . . . . . . . . . . . . . 5 Flight 18 | . . . . . 15 27 32 33 33 33 33 23 23 23 23 23 23 23 20 19 23 21 25 3 Device 13 | . . . 14 19 22 16 14 13 13 13 13 10 11 11 9 11 12 15 18 16 14 15 13 10 Storage 7 | . 14 14 11 11 11 11 6 6 6 6 6 5 5 5 5 5 5 5 5 4 4 4 4 1 Processor 2 | . . . . . . 4 1 . . . . . . . . . . . . . 3 7 8 10 Hackware 5 | . . . . . . . 1 6 6 6 6 11 11 11 11 11 10 10 10 11 14 13 17 7 Protection 2 | . . . 5 . . . 5 6 6 6 6 5 5 5 5 5 6 . . . 7 1 . . Energy Gun 2 | . 28 20 12 . . . . . . . . . . . . . . . . . . . . 1 Energy Cannon 3 | . . . 7 22 22 1 . . . . . . . . . . . . . . . . . . Piercing Weapon 2 | . . . . . . 10 1 5 5 6 6 5 5 5 5 5 2 . . . . . . . Peak Build Rating 174 | 6 7 6 16 19 20 28 70 70 70 70 72 92 90 85 93 86 118 116 124 130 124 139 162 174 Average Rating 66 | 4 6 5 12 16 19 22 65 69 69 70 70 84 85 85 84 86 104 113 116 108 117 133 147 135 On Entrance 67 | . 6 6 5 16 19 20 26 70 70 70 70 70 85 85 85 86 86 106 114 76 97 120 139 162 Naked Turns . | . . . . . . . . . . . . . . . . . . . . . . . . . Heaviest Build 115 | 13 18 18 32 38 38 38 27 26 26 26 26 31 33 25 25 25 41 42 45 41 37 42 49 115 Greatest Support 150 | 20 20 20 40 42 42 21 27 26 26 26 26 32 26 26 26 26 51 51 57 56 50 57 51 150 Greatest Overweight (x) 3 | . . 1 3 3 2 2 1 . . . . 1 1 . . . 1 . . 1 . . . 2 Average Overweight (x) . | . . . 1 . 1 1 . . . . . . . . . . . . . . . . . . Largest Inventory Capacity 25 | 8 10 10 10 15 15 15 10 10 10 10 10 10 10 10 10 10 10 10 10 10 10 10 10 25 Average Capacity 11 | 6 8 10 10 14 15 14 10 10 10 10 10 10 10 10 10 10 10 10 10 10 10 10 10 12 Most Carried 25 | 6 9 9 10 15 15 15 10 10 10 10 10 10 10 10 10 10 10 10 10 10 10 10 10 25 Average Carried 10 | 3 6 8 8 13 14 13 8 10 10 10 10 9 9 10 9 10 8 8 8 7 9 9 9 8 Final Capacity 25 | 8 10 10 10 15 15 10 10 10 10 10 10 10 10 10 10 10 10 10 10 10 10 10 10 25 Final Carried 16 | 6 9 7 10 15 15 10 10 10 10 10 10 10 10 10 10 10 10 8 5 10 9 10 10 16 Class Distribution -------------------- 32% | Hacker-Scout 21% | Scavenger-Mutant 16% | Mutant 13% | Scout 4% | Scavenger-Scrapper 3% | Hacker-Sprinter Dominant Class ---------------- Mutant | -10/Materials Mutant | -10/Mines Mutant | -9/Materials Scavenger-Mutant | -9/Storage Scavenger-Mutant | -9/Recycling Mutant | -9/Scraptown Scout | -6/Factory Scout | -6/Lower Caves Scout | -6/Lower Caves Scout | -6/Data Miner Scout | -5/Proximity Caves Hacker-Scout | -5/Factory Hacker-Scout | -5/Upper Caves Hacker-Scout | -5/Upper Caves Hacker-Scout | -5/Zhirov Hacker-Scout | -4/Proximity Caves Hacker-Scout | -4/Factory Hacker-Scout | -4/Waste Hacker-Scout | -4/Factory Hacker-Scout | -3/Research Hacker-Sprinter | -3/Testing Hacker-Sprinter | -2/Research Hacker-Sprinter | -2/Quarantine Scavenger-Scrapper | -2/Protoforge Resources | -11 -10 -10 -9 -9 -9 -9 -6 -6 -6 -6 -5 -5 -5 -5 -5 -4 -4 -4 -4 -3 -3 -2 -2 -2 ----------- Run | Yrd Mat Min Mat Sto Rec Scr Fac Low Low Dat Pro Fac Upp Upp Zhi Pro Fac Was Fac Res Tes Res Qua Frg Matter Collected 4025 | 185 14 56 301 122 30 40 214 316 69 . . 267 46 187 . 64 262 . 84 441 . 7 . 1320 Remotely . | . . . . . . . . . . . . . . . . . . . . . . . . . Salvage Created 6098 | . 14 9 1219 858 333 . 214 107 73 . . 380 305 30 . . 277 . . 303 . . . 1976 Parts 311 | . . . 80 47 20 . 5 6 5 . . 21 . 2 . . 20 . . 17 . . . 88 Haulers Intercepted 6 | . . . 3 3 . . . . . . . . . . . . . . . . . . . . Recyclers Shooed 1 | . . . . . . . . . . . . . . . . . 1 . . . . . . . Parts Field Recycled . | . . . . . . . . . . . . . . . . . . . . . . . . . Retrieved Matter . | . . . . . . . . . . . . . . . . . . . . . . . . . Parts Self-Destructed 23 | . . . . . . . . 9 12 . . . . 2 . . . . . . . . . . Prevented 3 | . . . . . . . . 3 . . . . . . . . . . . . . . . . Kills | -11 -10 -10 -9 -9 -9 -9 -6 -6 -6 -6 -5 -5 -5 -5 -5 -4 -4 -4 -4 -3 -3 -2 -2 -2 ------- Run | Yrd Mat Min Mat Sto Rec Scr Fac Low Low Dat Pro Fac Upp Upp Zhi Pro Fac Was Fac Res Tes Res Qua Frg Combat Hostiles Destroyed 92 | . . 1 23 13 3 . . 5 4 . . 10 . . . . 5 . . . . . . 28 Melee 1 | . . . . . . . . 1 . . . . . . . . . . . . . . . . Guns 47 | . . 1 18 . . . . . . . . . . . . . . . . . . . . 28 Cannons 21 | . . . 5 13 3 . . . . . . . . . . . . . . . . . . . AOE 23 | . . . . . . . . 4 4 . . 10 . . . . 5 . . . . . . . Classes Destroyed 21 | . 1 1 9 . . . . . . . . 2 . . . . 1 . . . . . . 7 Worker 18 | . 1 . 7 2 . . 2 . . . . 2 . . . . 3 . . 1 . . . . Builder 6 | . . . 4 . . . . . . . . . . . . . 2 . . . . . . . Tunneler 2 | . . . 1 . . . . . . . . . . . . . . . . 1 . . . . Hauler 6 | . . . 3 3 . . . . . . . . . . . . . . . . . . . . Recycler 8 | . . . 1 1 2 . 1 . . . . 1 . . . . . . . 2 . . . . Operator 1 | . . . . . . . . . . . . 1 . . . . . . . . . . . . Drone 2 | . . . . . . . . . . . . . . . . . . . . . . . . 2 Watcher 10 | . . . 3 2 . . 1 . . . . 3 . . . . . . . . . . . 1 Swarmer 32 | . . . 10 . . . . 3 4 . . 9 . . . . 3 . . . . . . 3 Saboteur 1 | . . . . . . . . . . . . . . . . . . . . . . . . 1 Grunt 20 | . . . 8 9 . . . 2 . . . . . . . . . . . . . . . 1 Brawler 4 | . . . 1 1 . . . . . . . . . . . . . . . . . . . 2 Duelist 1 | . . . . . . . . . . . . . . . . . . . . . . . . 1 Sentry 10 | . . . 4 3 3 . . . . . . . . . . . . . . . . . . . Demolisher 1 | . . 1 . . . . . . . . . . . . . . . . . . . . . . Specialist 2 | . . . . . . . . . . . . . . . . . . . . . . . . 2 Hunter 4 | . . . . . . . . . . . . . . . . . 2 . . . . . . 2 Programmer 5 | . . . . . . . . . . . . 1 . . . . . . . . . . . 4 Hotshot 1 | . . . . . . . . . . . . . . . . . . . . . . . . 1 Immortal 2 | . . . . . . . . . . . . . . . . . . . . . . . . 2 Striker 4 | . . . . . . . . . . . . . . . . . . . . . . . . 4 Executioner 2 | . . . . . . . . . . . . . . . . . . . . . . . . 2 Scrapoid 1 | . . . . . . . . . . . . . . . . . . . . . . . . 1 Decomposer 1 | . . . . . . . . . . . . . . 1 . . . . . . . . . . Best Kill Streak 10 | . 1 1 8 8 2 . 4 4 4 . . 9 . . . . 10 . . 2 . . . 5 Combat Bots Only 9 | . . 1 6 4 1 . . 4 4 . . 9 . . . . 5 . . . . . . 5 Max Kills in Single Turn 9 | . 1 1 2 2 1 . 1 1 2 . . 4 . 1 . . 9 . . 1 . . . 1 Gunslinging . | . . . . . . . . . . . . . . . . . . . . . . . . . Exploded 5 | . . . . . . . . 1 2 . . 4 . . . . 5 . . . . . . . Melee 1 | . . . . . . . . 1 . . . . . . . . . . . . . . . . Uniques/NPCs Destroyed . | . . . . . . . . . . . . . . . . . . . . . . . . . Combat | -11 -10 -10 -9 -9 -9 -9 -6 -6 -6 -6 -5 -5 -5 -5 -5 -4 -4 -4 -4 -3 -3 -2 -2 -2 -------- Run | Yrd Mat Min Mat Sto Rec Scr Fac Low Low Dat Pro Fac Upp Upp Zhi Pro Fac Was Fac Res Tes Res Qua Frg Hostile Shots Fired 959 | . 14 18 118 20 6 . 108 20 11 . 3 55 11 4 . 15 121 . 145 20 4 24 5 237 Missed 452 | . 7 4 25 4 . . 66 13 7 . 2 34 6 1 . 10 75 . 87 14 2 18 5 72 Hits 507 | . 7 14 93 16 6 . 42 7 4 . 1 21 5 3 . 5 46 . 58 6 2 6 . 165 Melee 11 | . . . . . . . . . . . . . . . . . . . 8 . . . . 3 Projectile 496 | . 7 14 93 16 6 . 42 7 4 . 1 21 5 3 . 5 46 . 50 6 2 6 . 162 AOE 11 | . . 8 . . . . . . . . . . . . . . 1 . 2 . . . . . Critical Strikes 20 | . . 1 1 . . . . . . . . . . . . . 4 . 6 . . . . 8 Part Disruptions 1 | . . . . . . . . . . . . . . . . . 1 . . . . . . . Damage Taken 10098 | . 56 379 929 191 87 . 447 101 78 . 13 392 92 13 . 73 841 . 1172 305 35 252 . 4642 Core 2132 | . 8 62 172 28 14 . 183 57 19 . . 49 37 5 . 30 176 . 192 57 17 138 . 888 Absorbed by Shields 130 | . . . . . . . . . . . . 10 . . . . 46 . . . . . . 74 Reduced by Siege Mode 161 | . . . . . . . . . . . . . . . . . . . . . . . . 161 Redirected to Shielding 292 | . . . . . . . 41 20 9 . . 45 . 2 . 27 148 . . . . . . . Ignored by Resistances 12 | . . . . . . . . . . . . . . . . . . . . . . . . 12 Regen/Repaired (Parts) 198 | . . . . . . . . . . . . 54 . . . . 96 . . 30 . 18 . . Core Remaining (%) 75 | 100 . 72 . . . 46 . . . . 69 . . . . 87 . . 60 . 94 . . . Volleys Fired 313 | . 6 5 107 43 9 . . 7 2 . . 13 6 . . . 25 . 11 2 1 . . 76 Largest 4 | . 2 2 2 2 2 . . 1 1 . . 1 1 . . . 1 . 1 1 1 . . 4 Hottest 223 | . 80 80 136 136 136 . . 30 30 . . 30 43 . . . 51 . 51 43 43 . . 223 Shots Fired 560 | . 12 10 207 86 18 . . 7 2 . . 13 6 . . . 25 . 11 2 1 . . 160 Gun 333 | . 12 10 155 . . . . . . . . . . . . . . . . . . . . 156 Cannon 192 | . . . 52 86 18 . . . . . . . . . . . 21 . 11 . . . . 4 Launcher 33 | . . . . . . . . 7 2 . . 13 6 . . . 2 . . 2 1 . . . Special 2 | . . . . . . . . . . . . . . . . . 2 . . . . . . . Kinetic 192 | . . 4 9 . . . . . . . . . . . . . 21 . 11 . . . . 147 Thermal 326 | . 6 5 198 86 18 . . . . . . . . . . . . . . . . . . 13 Explosive 33 | . . . . . . . . 7 2 . . 13 6 . . . 2 . . 2 1 . . . Electromagnetic 7 | . 6 1 . . . . . . . . . . . . . . . . . . . . . . Robot Hit Streak 32 | . 5 7 12 10 8 . . 4 . . . 4 1 . . . 2 . . . . . . 32 Robot Miss Streak 5 | . 3 1 5 5 2 . . . 1 . . 1 . . . . . . . . . . . 2 Penetration Max 1 | . . . . . . . . . . . . . . . . . . . . . . . . 1 Secondary Targets 7 | . . . 3 . . . . . . . . . . . . . . . . . . . . 4 Max Gunslinging Chain 1 | . . . 1 . . . . . . . . . . . . . . . . . . . . 1 Shots Hit Robots 344 | . 7 8 116 45 11 . 4 2 . . . 16 2 1 . . 1 . . 4 2 . 1 124 Core Hits 230 | . 1 4 51 22 5 . 2 10 6 . . 17 14 . . . 45 . . 3 . . . 50 Critical Kills 7 | . . . . . . . 1 . . . . . . . . . . . . . . . . 6 Critical Parts Destroyed 8 | . . . . . . . 2 . . . . . . . . . . . . . . . . 6 Critical Strikes 30 | . . . 9 . . . 3 . . . . 1 . 1 . . . . . . . . . 16 Burn 9 | . . . 9 . . . . . . . . . . . . . . . . . . . . . Destroy 14 | . . . . . . . . . . . . . . . . . . . . . . . . 14 Blast 1 | . . . . . . . . . . . . . . . . . . . . . . . . 1 Smash 4 | . . . . . . . 3 . . . . . . . . . . . . . . . . 1 Impale 2 | . . . . . . . . . . . . 1 . 1 . . . . . . . . . . Melee Attacks 121 | . . . . . . . 30 9 2 . . 33 1 3 . 2 9 . . 21 6 . 2 3 Impact 35 | . . . . . . . 27 . . . . . . . . . . . . . 4 . 1 3 Slashing 21 | . . . . . . . . . . . . . . . . . . . . 21 . . . . Piercing 60 | . . . . . . . 3 9 2 . . 31 1 3 . 2 9 . . . . . . . Sneak Attacks 18 | . . . . . . . 3 . . . . 6 1 1 . . . . . 4 2 . . 1 Combat Hostiles 2 | . . . . . . . . . . . . . 1 . . . . . . . 1 . . . Follow-up Attacks . | . . . . . . . . . . . . . . . . . . . . . . . . . Damage Inflicted 14157 | . 81 80 1995 1003 225 . 381 430 178 . . 1515 795 94 . . 927 . 19 319 . . . 6115 Guns 7289 | . 81 80 1259 . . . . . . . . . . . . . . . . . . . . 5869 Cannons 2047 | . . . 736 1003 225 . . . . . . . . . . . . . . . . . . 83 Explosions 3191 | . . . . . . . . 393 178 . . 952 741 . . . 927 . . . . . . . Melee 1611 | . . . . . . . 381 37 . . . 563 54 94 . . . . . 319 . . . 163 Ramming 19 | . . . . . . . . . . . . . . . . . . . 19 . . . . . Kinetic 5917 | . . 25 56 . . . . . . . . . . . . . . . . . . . . 5836 Thermal 3382 | . 44 55 1939 1003 225 . . . . . . . . . . . . . . . . . . 116 Explosive 2514 | . . . . . . . . 393 178 . . 952 741 . . . 250 . . . . . . . Electromagnetic 714 | . 37 . . . . . . . . . . . . . . . 677 . . . . . . . Impact 544 | . . . . . . . 381 . . . . . . . . . . . . . . . . 163 Slashing 319 | . . . . . . . . . . . . . . . . . . . . 319 . . . . Piercing 748 | . . . . . . . . 37 . . . 563 54 94 . . . . . . . . . . Highest Corruption 5 | . . . . . . . 5 5 5 5 5 4 4 4 4 4 . . 1 . . . . . Average Corruption 3 | . . . . . . . 3 5 5 5 5 2 4 4 4 4 . . 1 . . . . . Corruption Purged . | . . . . . . . . . . . . . . . . . . . . . . . . . Corruption Blocked 1 | . . . . . . . . . . . . . . . . . . . . . . . . 1 Effects 51 | . . . . . . . 8 9 5 1 2 9 4 7 . 5 . . 1 . . . . . Message Errors 11 | . . . . . . . . 2 . 1 . 4 1 2 . 1 . . . . . . . . Matter Fused 14 | . . . . . . . 4 2 4 . 1 . 1 1 . 1 . . . . . . . . Heat Flow Errors 9 | . . . . . . . 3 . . . . 2 . 2 . 1 . . 1 . . . . . Energy Discharges 6 | . . . . . . . . 1 1 . . 2 . 1 . 1 . . . . . . . . Parts Rejected 1 | . . . . . . . 1 . . . . . . . . . . . . . . . . . Data Loss (minor) 8 | . . . . . . . . 4 . . . 1 2 1 . . . . . . . . . . Data Loss (major) 2 | . . . . . . . . . . . 1 . . . . 1 . . . . . . . . Overload Shots . | . . . . . . . . . . . . . . . . . . . . . . . . . Overflow Damage 629 | . . . 3 . 1 . 132 25 . . . 75 155 170 . . . . . 68 . . . . Projectiles 4 | . . . 3 . 1 . . . . . . . . . . . . . . . . . . . Explosions 226 | . . . . . . . . 25 . . . 32 155 . . . . . . 14 . . . . Melee 399 | . . . . . . . 132 . . . . 43 . 170 . . . . . 54 . . . . Knockbacks . | . . . . . . . . . . . . . . . . . . . . . . . . . Impact . | . . . . . . . . . . . . . . . . . . . . . . . . . Kinetic . | . . . . . . . . . . . . . . . . . . . . . . . . . Secondary . | . . . . . . . . . . . . . . . . . . . . . . . . . Self-Inflicted Damage 67 | . . . . . . . . . 14 . . . . . . . . . 9 44 . . . . Shots 2 | . . . . . . . . . 1 . . . . . . . . . . 1 . . . . Rammed 2 | . . . 1 . . . . . . . . . . . . . . . 1 . . . . . Targets Rammed 2 | . . . 1 . . . . . . . . . . . . . . . 1 . . . . . Kicked . | . . . . . . . . . . . . . . . . . . . . . . . . . Crushed . | . . . . . . . . . . . . . . . . . . . . . . . . . Highest Temperature 853 | . 108 40 346 276 5 . 290 . 4 . . 224 . 255 . 137 4 334 173 438 . 70 153 853 Average Temperature 103 | . 56 21 128 61 3 . 64 . 4 . . 88 . 125 . 75 2 190 55 117 . 28 54 193 Received Heat Transfer 1908 | . . 78 228 99 27 . 105 9 18 . . 18 . . . . 87 . 90 . . . . 1149 Effects 10 | . . . 2 . . . 2 . . . . . . . . . . . . . . . . 6 Shutdowns 3 | . . . 1 . . . . . . . . . . . . . . . . . . . . 2 Interference 5 | . . . 1 . . . 2 . . . . . . . . . . . . . . . . 2 Matter Decay 1 | . . . . . . . . . . . . . . . . . . . . . . . . 1 Damage (core) 1 | . . . . . . . . . . . . . . . . . . . . . . . . 1 Siege Activations 2 | . . . . . . . . . . . . . . . . . . . . . . . . 2 Total Turns 33 | . . . . . . . . . . . . . . . . . . . . . . . . 33 Longest Duration 18 | . . . . . . . . . . . . . . . . . . . . . . . . 18 Martial Activations . | . . . . . . . . . . . . . . . . . . . . . . . . . Shielding Activations . | . . . . . . . . . . . . . . . . . . . . . . . . . Robots Disrupted 3 | . . . . . . . . . . . . . . . . . 3 . . . . . . . Combat Hostiles 2 | . . . . . . . . . . . . . . . . . 2 . . . . . . . Robots Corrupted 2 | . . . . . . . 2 . . . . . . . . . . . . . . . . . Combat Hostiles . | . . . . . . . . . . . . . . . . . . . . . . . . . Parts Fried 6 | . . . . . . . 3 . . . . . . . . . 3 . . . . . . . Impact Corruptions 5 | . . . . . . . 5 . . . . . . . . . . . . . . . . . Robots Melted . | . . . . . . . . . . . . . . . . . . . . . . . . . Combat Hostiles . | . . . . . . . . . . . . . . . . . . . . . . . . . Parts Melted 19 | . . . 14 3 . . . . . . . . . . . . . . . . . . . 2 Heat Transferred 7603 | . 100 125 5022 1813 407 . . . . . . . . . . . . . . . . . . 136 Parts Sabotaged . | . . . . . . . . . . . . . . . . . . . . . . . . . Parts Stolen . | . . . . . . . . . . . . . . . . . . . . . . . . . Parts Stripped . | . . . . . . . . . . . . . . . . . . . . . . . . . Power Chain Reactions . | . . . . . . . . . . . . . . . . . . . . . . . . . Alert | -11 -10 -10 -9 -9 -9 -9 -6 -6 -6 -6 -5 -5 -5 -5 -5 -4 -4 -4 -4 -3 -3 -2 -2 -2 ------- Run | Yrd Mat Min Mat Sto Rec Scr Fac Low Low Dat Pro Fac Upp Upp Zhi Pro Fac Was Fac Res Tes Res Qua Frg Maximum Alert Level 4 | . . . 1 1 . . 2 . . . . 3 . . . . 4 1 3 3 2 1 . 2 Low Security (%) 47 | 100 100 100 54 38 100 . 64 . . . . 36 . . . . 39 . . . . . 100 36 Level 1 20 | . . . 45 61 . . 12 . . . . 5 . . . . . 100 32 . . 100 . 38 Level 2 22 | . . . . . . . 23 . . . . 45 . . . . 14 . 43 62 100 . . 25 Level 3 8 | . . . . . . . . . . . . 12 . . . . 36 . 24 37 . . . . Level 4 . | . . . . . . . . . . . . . . . . . 10 . . . . . . . Level 5 . | . . . . . . . . . . . . . . . . . . . . . . . . . High Security . | . . . . . . . . . . . . . . . . . . . . . . . . . Max Security . | . . . . . . . . . . . . . . . . . . . . . . . . . Peak Influence 1142 | . 45 20 341 332 186 . 634 . . . . 962 . . . . 1142 342 1041 786 481 312 190 640 Initial 540 | . . . . 140 126 . . . . . . 6 . . . . . 342 239 540 420 258 175 30 Average 301 | . 12 1 142 216 129 . 172 . . . . 404 . . . . 541 342 586 673 452 272 104 300 Influence Increases 9517 | . 65 20 677 406 237 . 891 200 165 . 30 1623 30 135 . 60 1564 . 1276 628 91 114 90 1215 Destroy 0b10 Robot/C 1920 | . . 20 460 260 60 . . 100 80 . . 200 . . . . 100 . . . . . . 640 Destroy 0b10 Robot/NC 265 | . 5 . 95 40 10 . 20 . . . . 35 . . . . 25 . . 20 . . . 15 Destroy Leader 312 | . . . 92 70 . . 2 10 10 . . 26 . . . . 10 . . . . . . 92 Allied During Kill 40 | . . . . . . . . . . . . . . . . . . . . . . . . 40 Successful Hack 342 | . . . 7 19 17 . 55 . . . . 72 . . . . 11 . 34 22 40 39 . 26 Select Force Hacks 150 | . . . . . 150 . . . . . . . . . . . . . . . . . . . Disable Machine 510 | . . . . 15 . . 15 . . . . 90 . . . . 225 . . 15 . . 15 135 Destroy Structure 483 | . . . 8 2 . . 24 . . . . 190 . . . . 78 . 22 96 36 . . 27 Partial Spotted 330 | . 15 . . . . . . . . . . 60 . . . . 105 . 60 15 15 15 15 30 Lose Combat Pursuer 2865 | . 45 . 15 . . . 375 90 75 . 30 450 30 135 . 60 510 . 660 60 . 60 60 210 Active Sensor Use 2300 | . . . . . . . 400 . . . . 500 . . . . 500 . 500 400 . . . . Influence Decreases 8887 | . 65 20 344 415 510 51 263 413 170 410 20 1088 273 229 208 60 585 637 587 911 378 263 347 640 Entered New Map 3563 | . . . . 193 198 51 . 233 80 410 . 4 203 59 208 . . 637 103 491 328 203 137 25 Time Decay 3185 | . 65 20 284 222 302 . 243 180 90 . 20 294 70 170 . 60 215 . 214 230 50 40 40 376 Search Patrol Dispatched 600 | . . . . . . . . . . . . 150 . . . . 150 . 150 150 . . . . Lost Part 559 | . . . 60 . 10 . 20 . . . . 30 . . . . 70 . 120 40 . 10 . 199 Lost Ally 60 | . . . . . . . . . . . . 10 . . . . . . . . . 10 . 40 Purge Threat 920 | . . . . . . . . . . . . 600 . . . . 150 . . . . . 170 . Squads Dispatched 85 | . 1 . 1 1 . . 13 . 1 . . 15 . 1 . . 18 . 16 11 . 2 1 4 Investigation 59 | . . . . . . . 10 . . . . 12 . . . . 14 . 9 9 . 2 . 3 Extermination 13 | . . . . . . . 3 . . . . 3 . . . . 1 . 3 2 . . 1 . Reinforcement 11 | . 1 . 1 1 . . . . . . . . . . . . 3 . 4 . . . . 1 Assault 2 | . . . . . . . . . 1 . . . . 1 . . . . . . . . . . Garrison . | . . . . . . . . . . . . . . . . . . . . . . . . . Intercept . | . . . . . . . . . . . . . . . . . . . . . . . . . Searches Triggered 4 | . . . . . . . . . . . . 1 . . . . 1 . 1 1 . . . . Data Miner Redirects 8 | . . . . . . . . . . . . 2 . . . . 2 . 1 3 . . . . Construction Impeded 2 | . . . 1 . . . . . . . . . . . . . 1 . . . . . . . Haulers Reinforced . | . . . . . . . . . . . . . . . . . . . . . . . . . Active Scanning Responses 23 | . . . . . . . 4 . . . . 5 . . . . 5 . 5 4 . . . . Cargo Convoy Interrupts . | . . . . . . . . . . . . . . . . . . . . . . . . . Stealth | -11 -10 -10 -9 -9 -9 -9 -6 -6 -6 -6 -5 -5 -5 -5 -5 -4 -4 -4 -4 -3 -3 -2 -2 -2 --------- Run | Yrd Mat Min Mat Sto Rec Scr Fac Low Low Dat Pro Fac Upp Upp Zhi Pro Fac Was Fac Res Tes Res Qua Frg Distress Signals 21 | . . . . 3 . . 2 . . . . 2 . . . . 4 . 2 . 1 1 . 6 Communications Jammed . | . . . . . . . . . . . . . . . . . . . . . . . . . Distress Signals . | . . . . . . . . . . . . . . . . . . . . . . . . . Times Spotted 456 | . 2 3 33 17 2 . 35 12 18 . 2 45 4 5 . 4 56 3 77 15 5 11 8 99 Peak Tracking Total 22 | . 5 2 5 3 1 . 10 4 14 . 3 11 8 9 . 3 13 3 22 7 7 10 6 12 Tactical Retreats 79 | . 1 . 1 . . . 12 2 5 . 1 12 2 4 . 3 12 . 12 1 . 1 2 8 Traps | -11 -10 -10 -9 -9 -9 -9 -6 -6 -6 -6 -5 -5 -5 -5 -5 -4 -4 -4 -4 -3 -3 -2 -2 -2 ------- Run | Yrd Mat Min Mat Sto Rec Scr Fac Low Low Dat Pro Fac Upp Upp Zhi Pro Fac Was Fac Res Tes Res Qua Frg Traps Triggered 24 | . . . . 4 . . 6 . . . . 5 . . . . 5 . . 1 . 1 2 . Indirectly . | . . . . . . . . . . . . . . . . . . . . . . . . . Trap Hack Attempts . | . . . . . . . . . . . . . . . . . . . . . . . . . Triggered . | . . . . . . . . . . . . . . . . . . . . . . . . . Disarmed . | . . . . . . . . . . . . . . . . . . . . . . . . . Reprogrammed . | . . . . . . . . . . . . . . . . . . . . . . . . . Reused . | . . . . . . . . . . . . . . . . . . . . . . . . . Traps Extracted . | . . . . . . . . . . . . . . . . . . . . . . . . . Installed . | . . . . . . . . . . . . . . . . . . . . . . . . . Triggered . | . . . . . . . . . . . . . . . . . . . . . . . . . Machines | -11 -10 -10 -9 -9 -9 -9 -6 -6 -6 -6 -5 -5 -5 -5 -5 -4 -4 -4 -4 -3 -3 -2 -2 -2 ---------- Run | Yrd Mat Min Mat Sto Rec Scr Fac Low Low Dat Pro Fac Upp Upp Zhi Pro Fac Was Fac Res Tes Res Qua Frg Machines Disabled 35 | . . . . 1 . . 1 . . . . 6 . 1 . . 15 . . 1 . . 1 9 Max in Single Turn 9 | . . . . 1 . . 1 . . . . 3 . 1 . . 9 . . 1 . . 1 1 Garrison Access 8 | . . . . . . . 1 . . . . 2 . . . . 4 . . . . . 1 . Machines Repaired . | . . . . . . . . . . . . . . . . . . . . . . . . . Machines Dismantled . | . . . . . . . . . . . . . . . . . . . . . . . . . Machines Sabotaged . | . . . . . . . . . . . . . . . . . . . . . . . . . Overloaded Fab Kills . | . . . . . . . . . . . . . . . . . . . . . . . . . Hacking | -11 -10 -10 -9 -9 -9 -9 -6 -6 -6 -6 -5 -5 -5 -5 -5 -4 -4 -4 -4 -3 -3 -2 -2 -2 --------- Run | Yrd Mat Min Mat Sto Rec Scr Fac Low Low Dat Pro Fac Upp Upp Zhi Pro Fac Was Fac Res Tes Res Qua Frg Machines Accessed 120 | . . . 2 6 10 1 17 . . 4 . 22 1 . 4 . 17 . 10 9 3 5 5 4 Terminals 57 | . . . 2 6 4 . 9 . . . . 10 . . . . 4 . 6 5 3 3 4 1 Fabricators 4 | . . . . . . . 1 . . . . 3 . . . . . . . . . . . . Repair Stations 7 | . . . . . . . . . . . . 2 . . . . 3 . . 1 . 1 . . Recycling Units 34 | . . . . . 6 . 6 . . . . 5 . . . . 6 . 4 3 . 1 . 3 Scanalyzers . | . . . . . . . . . . . . . . . . . . . . . . . . . Garrison Access 8 | . . . . . . . 1 . . . . 2 . . . . 4 . . . . . 1 . Total Hacks 382 | . . . 7 18 35 2 43 . . 33 . 66 1 . 17 . 41 . 31 23 14 15 22 14 Successful 213 | . . . 3 7 18 2 19 . . 33 . 38 1 . 17 . 25 . 18 7 6 6 7 6 Failed 169 | . . . 4 11 17 . 24 . . . . 28 . . . . 16 . 13 16 8 9 15 8 Catastrophic 25 | . . . . 1 2 . 4 . . . . 5 . . . . 2 . 1 5 1 2 . 2 Database Lockouts . | . . . . . . . . . . . . . . . . . . . . . . . . . Manual 174 | . . . 4 8 16 . 21 . . . . 35 . . 1 . 19 . 18 11 6 11 11 13 Terminals 223 | . . . 7 18 18 . 28 . . . . 45 . . . . 16 . 24 15 14 10 21 7 Fabricators 8 | . . . . . . . 3 . . . . 5 . . . . . . . . . . . . Repair Stations 11 | . . . . . . . . . . . . 2 . . . . 3 . . 3 . 3 . . Recycling Units 77 | . . . . . 17 . 11 . . . . 12 . . . . 16 . 7 5 . 2 . 7 Scanalyzers . | . . . . . . . . . . . . . . . . . . . . . . . . . Garrison Access 10 | . . . . . . . 1 . . . . 2 . . . . 6 . . . . . 1 . Terminal Hacks 126 | . . . 2 6 8 2 9 . . 33 . 19 1 . 17 . 7 . 8 3 4 2 5 . Record 20 | . . . . . . 2 . . . 11 . . . . 5 . . . . . . . 2 . Part Schematic 17 | . . . . . . . . . . 13 . . . . 4 . . . . . . . . . Robot Schematic 6 | . . . . . . . . . . 6 . . . . . . . . . . . . . . Robot Analysis 7 | . . . . . . . . . . . . 1 . . 4 . . . 2 . . . . . Prototype ID Bank 17 | . . . 1 . 4 . 1 . . 3 . 3 . . 4 . . . . . 1 . . . Open Door 2 | . . . . 1 . . . . . . . . 1 . . . . . . . . . . . Branch Access Points 7 | . . . 1 1 1 . . . . . . 1 . . . . . . 1 1 . 1 . . Terminal Index 5 | . . . . . . . . . . . . . . . . . 1 . 1 1 1 1 . . Recycling Unit Index 2 | . . . . . . . . . . . . . . . . . 1 . 1 . . . . . Alert Level 10 | . . . . 1 2 . 1 . . . . 2 . . . . 3 . . . . . 1 . Unreport Threat 7 | . . . . . . . . . . . . 4 . . . . 1 . . . . . 2 . Locate Traps 9 | . . . . 1 . . 3 . . . . 2 . . . . . . 1 1 1 . . . Recall Investigation 1 | . . . . . . . 1 . . . . . . . . . . . . . . . . . Recall Extermination 1 | . . . . . . . . . . . . 1 . . . . . . . . . . . . Hauler Manifests 1 | . . . . 1 . . . . . . . . . . . . . . . . . . . . Registered Prototypes 2 | . . . . . . . . . . . . 1 . . . . . . 1 . . . . . Zone Layout 12 | . . . . 1 1 . 3 . . . . 4 . . . . 1 . 1 . 1 . . . Fabricator Hacks . | . . . . . . . . . . . . . . . . . . . . . . . . . Repair Station Hacks . | . . . . . . . . . . . . . . . . . . . . . . . . . Recycling Unit Hacks 16 | . . . . . 4 . 1 . . . . 4 . . . . 3 . 3 . . 1 . . Retrieve Matter 1 | . . . . . . . . . . . . . . . . . 1 . . . . . . . Retrieve Components 15 | . . . . . 4 . 1 . . . . 4 . . . . 2 . 3 . . 1 . . Scanalyzer . | . . . . . . . . . . . . . . . . . . . . . . . . . Garrison Access Hacks 8 | . . . . . . . 1 . . . . 2 . . . . 4 . . . . . 1 . Seal Access 8 | . . . . . . . 1 . . . . 2 . . . . 4 . . . . . 1 . Unauthorized Hacks 63 | . . . 1 1 6 . 8 . . . . 13 . . . . 11 . 7 4 2 3 1 6 Terminals 23 | . . . 1 1 1 . 3 . . . . 4 . . . . 2 . 3 1 2 1 1 3 Assimilate 3 | . . . . . . . . . . . . 2 . . . . . . . . 1 . . . Botnet 18 | . . . 1 1 1 . 3 . . . . 2 . . . . 2 . 3 1 1 1 1 1 Detonate 1 | . . . . . . . . . . . . . . . . . . . . . . . . 1 Disrupt 1 | . . . . . . . . . . . . . . . . . . . . . . . . 1 Fabricators 2 | . . . . . . . . . . . . 2 . . . . . . . . . . . . Liberate 2 | . . . . . . . . . . . . 2 . . . . . . . . . . . . Repair Stations 7 | . . . . . . . . . . . . 2 . . . . 3 . . 1 . 1 . . Patch 7 | . . . . . . . . . . . . 2 . . . . 3 . . 1 . 1 . . Recycling Units 31 | . . . . . 5 . 5 . . . . 5 . . . . 6 . 4 2 . 1 . 3 Tunnel 5 | . . . . . 5 . . . . . . . . . . . . . . . . . . . Fedlink 24 | . . . . . . . 5 . . . . 5 . . . . 6 . 4 2 . 1 . 1 Scraphulk 2 | . . . . . . . . . . . . . . . . . . . . . . . . 2 Scanalyzers . | . . . . . . . . . . . . . . . . . . . . . . . . . Garrison Access . | . . . . . . . . . . . . . . . . . . . . . . . . . Data Cores Recovered 1 | . . . . . . . . . . . . 1 . . . . . . . . . . . . Used 1 | . . . . . . . . . . . . 1 . . . . . . . . . . . . Hacking Detections 72 | . . . 2 5 8 . 12 . . . . 10 . . . . 7 . 6 8 2 4 4 4 Full Trace Events 7 | . . . . . 4 . 1 . . . . . . . . . . . . 2 . . . . Feedback Events . | . . . . . . . . . . . . . . . . . . . . . . . . . Feedback Blocked . | . . . . . . . . . . . . . . . . . . . . . . . . . Robot Schematics Acquired 6 | . . . . . . . . . . 6 . . . . . . . . . . . . . . Robots Built . | . . . . . . . . . . . . . . . . . . . . . . . . . Authchips . | . . . . . . . . . . . . . . . . . . . . . . . . . Time . | . . . . . . . . . . . . . . . . . . . . . . . . . Total Robot Build Rating . | . . . . . . . . . . . . . . . . . . . . . . . . . Part Schematics Acquired 17 | . . . . . . . . . . 13 . . . . 4 . . . . . . . . . Parts Built . | . . . . . . . . . . . . . . . . . . . . . . . . . Authchips . | . . . . . . . . . . . . . . . . . . . . . . . . . Time . | . . . . . . . . . . . . . . . . . . . . . . . . . Total Part Build Rating . | . . . . . . . . . . . . . . . . . . . . . . . . . Parts Repaired . | . . . . . . . . . . . . . . . . . . . . . . . . . Time . | . . . . . . . . . . . . . . . . . . . . . . . . . Parts Recycled . | . . . . . . . . . . . . . . . . . . . . . . . . . Recycled Matter . | . . . . . . . . . . . . . . . . . . . . . . . . . Retrieved Matter . | . . . . . . . . . . . . . . . . . . . . . . . . . Retrieved Components 20 | . . . . . 6 . 2 . . . . 7 . . . . 2 . 3 . . . . . Parts Scanalyzed . | . . . . . . . . . . . . . . . . . . . . . . . . . Part Schematics Acquired . | . . . . . . . . . . . . . . . . . . . . . . . . . Parts Damaged . | . . . . . . . . . . . . . . . . . . . . . . . . . Bothacking | -11 -10 -10 -9 -9 -9 -9 -6 -6 -6 -6 -5 -5 -5 -5 -5 -4 -4 -4 -4 -3 -3 -2 -2 -2 ------------ Run | Yrd Mat Min Mat Sto Rec Scr Fac Low Low Dat Pro Fac Upp Upp Zhi Pro Fac Was Fac Res Tes Res Qua Frg Used RIF Installer . | . . . . . . . . . . . . . . . . . . . . . . . . . Robots Hacked 3 | . . . . . . . . . . . . . . . . . 1 . . . 1 . 1 . Non-combat 1 | . . . . . . . . . . . . . . . . . 1 . . . . . . . Combat 1 | . . . . . . . . . . . . . . . . . . . . . . . 1 . Robot Hacks Applied 2 | . . . . . . . . . . . . . . . . . 1 . . . . . 1 . parse_system 1 | . . . . . . . . . . . . . . . . . . . . . . . 1 . find_chute 1 | . . . . . . . . . . . . . . . . . 1 . . . . . . . Manual 1 | . . . . . . . . . . . . . . . . . . . . . 1 . . . Relay Couplers Released 1 | . . . . . . . . . . . . . . . . . 1 . . . . . . . Machine Destruction 1 | . . . . . . . . . . . . . . . . . 1 . . . . . . . Fabnet Peak Effective % . | . . . . . . . . . . . . . . . . . . . . . . . . . Robots Rewired . | . . . . . . . . . . . . . . . . . . . . . . . . . Allies Hacked . | . . . . . . . . . . . . . . . . . . . . . . . . . Hacks Repelled . | . . . . . . . . . . . . . . . . . . . . . . . . . Allies | -11 -10 -10 -9 -9 -9 -9 -6 -6 -6 -6 -5 -5 -5 -5 -5 -4 -4 -4 -4 -3 -3 -2 -2 -2 -------- Run | Yrd Mat Min Mat Sto Rec Scr Fac Low Low Dat Pro Fac Upp Upp Zhi Pro Fac Was Fac Res Tes Res Qua Frg Total Allies 5 | . . . . . . . . . . . . 2 . . . . . . . . 1 . . 2 Largest Group 2 | . . . . . . . . . . . . 1 . . . . . . . . 1 1 . 2 Highest-Rated Group 278 | . . . . . . . . . . . . 10 . . . . . . . . 10 10 . 278 Highest-Rated Ally 139 | . . . . . . . . . . . . 10 . . . . . . . . 10 10 . 139 Total Orders . | . . . . . . . . . . . . . . . . . . . . . . . . . Ally Attacks 39 | . . . . . . . . . . . . . . . . . . . . . . . . 39 Total Damage 2132 | . . . . . . . . . . . . . . . . . . . . . . . . 2132 Kills 7 | . . . . . . . . . . . . . . . . . . . . . . . . 7 Allies Corrupted . | . . . . . . . . . . . . . . . . . . . . . . . . . Allies Melted 5 | . . . . . . . . . . . . . . . . . . . . . . . . 5 Intel | -11 -10 -10 -9 -9 -9 -9 -6 -6 -6 -6 -5 -5 -5 -5 -5 -4 -4 -4 -4 -3 -3 -2 -2 -2 ------- Run | Yrd Mat Min Mat Sto Rec Scr Fac Low Low Dat Pro Fac Upp Upp Zhi Pro Fac Was Fac Res Tes Res Qua Frg Active Infowar (turns) 4784 | . . . 248 . . . 563 374 182 26 58 926 135 333 72 210 559 13 430 443 . 85 99 28 Optics 169 | . . . . . . . 169 . . . . . . . . . . . . . . . . . A.S.S. 4310 | . . . . . . . 549 374 182 26 58 926 135 333 72 210 559 13 430 443 . . . . IFF 212 | . . . . . . . . . . . . . . . . . . . . . . 85 99 28 Structural 248 | . . . 248 . . . . . . . . . . . . . . . . . . . . . Cloaking 33 | . . . . . . . . . . . . . . . . . . 13 20 . . . . . Robot Analysis Total 7 | . . . . . . . . . . . . 1 . . 4 . . . 2 . . . . . Derelict Logs Recovered 9 | . . . . . . . . 2 1 . 2 . 2 1 . 1 . . . . . . . . Drone Launches . | . . . . . . . . . . . . . . . . . . . . . . . . . Drone Recoveries . | . . . . . . . . . . . . . . . . . . . . . . . . . Exploration | -11 -10 -10 -9 -9 -9 -9 -6 -6 -6 -6 -5 -5 -5 -5 -5 -4 -4 -4 -4 -3 -3 -2 -2 -2 ------------- Run | Yrd Mat Min Mat Sto Rec Scr Fac Low Low Dat Pro Fac Upp Upp Zhi Pro Fac Was Fac Res Tes Res Qua Frg Turns Passed 9744 | 67 226 217 754 475 675 1340 830 374 191 26 58 996 148 343 72 222 564 13 457 481 101 91 107 916 Spaces Moved 16246 | 49 147 168 325 234 537 944 1563 860 538 95 200 2371 409 691 150 621 1486 62 1346 1293 259 299 547 1052 Core 250 | 11 . . . . . . . . . . . . . . . . . . . . . . . 239 Treads 80 | . . . 2 . . . . . . . . . . . . . . . . . . . . 78 Legs 343 | 38 147 158 . . . . . . . . . . . . . . . . . . . . . . Wheels 1837 | . . 10 323 234 537 467 . . . . . . . . . . . . . . . . . 266 Hover . | . . . . . . . . . . . . . . . . . . . . . . . . . Flight 13736 | . . . . . . 477 1563 860 538 95 200 2371 409 691 150 621 1486 62 1346 1293 259 299 547 469 Fastest Speed 7 | 50 120 95 80 86 93 32 21 27 27 27 27 22 26 26 26 26 20 11 15 18 25 15 7 7 Average Speed 41 | 104 120 118 99 99 118 136 28 27 27 27 27 27 26 26 26 26 25 13 26 26 25 21 13 49 Slowest Speed 189 | 120 120 120 160 125 130 189 92 27 27 27 27 106 92 26 26 26 110 28 30 102 25 25 21 170 Overloaded Moves 1161 | . . . . . . . 106 . . . . 150 . . . . 57 52 239 116 . 85 155 201 Propulsion Burnouts 1 | . . . . . . . . . . . . . . . . . . . 1 . . . . . Robots Hopped 99 | . . . . . . . 13 1 . . . 17 . . . . 9 . 35 12 . 5 5 2 Potential Cave-ins . | . . . . . . . . . . . . . . . . . . . . . . . . . Cave-ins Triggered . | . . . . . . . . . . . . . . . . . . . . . . . . . Teleports 1 | . . . . . . . . . . . . . . . . . . . 1 . . . . . Exploration Rate (%) 52 | 4 23 29 25 34 94 72 44 92 75 70 35 62 57 86 60 88 47 75 40 43 37 12 63 37 Regions Visited 24 Branch Regions 15 Pre-discovered Areas 11 | . . . . . 5 . 1 . . 1 . . 1 . 3 . . . . . . . . . Known Exits Taken 15 | . . . 1 1 . . 1 1 1 1 1 1 1 1 1 1 . . 1 1 . 1 . . Unknown Exits Taken 7 | 1 1 1 . . 1 1 . . . . . . . . . . . . . . 1 . 1 . Scrap Searched 19 | . . . . . . 4 . 4 2 . 1 . 2 3 . 3 . . . . . . . . Spaces Dug 215 | . . . . . . . 24 20 9 . . 21 27 1 . 1 33 . 11 45 21 . . 2 Terrain Destroyed 462 | . . . . . . . 24 50 16 . . 134 76 1 . 1 41 . 12 75 21 . . 11 Melee 78 | . . . . . . . 24 5 2 . . 15 . 1 . 1 9 . . 15 4 . . 2 Projectile 46 | . . . . . . . . . . . . . . . . . 25 . 12 . . . . 9 AOE 338 | . . . . . . . . 45 14 . . 119 76 . . . 7 . . 60 17 . . . Terrain Rammed . | . . . . . . . . . . . . . . . . . . . . . . . . . Walls Destroyed . | . . . . . . . . . . . . . . . . . . . . . . . . . Machines Disabled . | . . . . . . . . . . . . . . . . . . . . . . . . . Actions | -11 -10 -10 -9 -9 -9 -9 -6 -6 -6 -6 -5 -5 -5 -5 -5 -4 -4 -4 -4 -3 -3 -2 -2 -2 --------- Run | Yrd Mat Min Mat Sto Rec Scr Fac Low Low Dat Pro Fac Upp Upp Zhi Pro Fac Was Fac Res Tes Res Qua Frg Total 18372 | 63 184 176 548 393 556 999 1879 978 579 94 203 2642 439 848 180 677 1624 66 1394 1378 287 320 573 1292 Wait 1119 | . 27 2 53 70 4 17 146 102 32 . 2 175 22 155 16 55 56 . 48 37 14 9 14 63 Move 16038 | 48 146 167 324 233 536 943 1536 857 537 94 199 2338 408 690 149 620 1468 61 1279 1272 258 289 538 1048 Hop 86 | . . . . . . . 12 1 . . . 15 . . . . 9 . 32 8 . 4 3 2 Pick Up 119 | 9 3 . 16 10 1 6 16 . 2 . . 11 . . 1 . 11 . 5 8 1 5 3 11 Fast Attach 87 | 3 1 . 12 4 2 2 2 . . . 1 10 . . 5 . 3 . 4 12 2 1 3 20 Attach 84 | 3 . 2 4 2 . 4 13 . . . . 5 1 . . . 13 4 9 4 3 1 2 14 Detach 38 | . . . . 1 . 2 7 . . . . 1 1 . . . 5 1 3 2 1 . . 14 Swap 85 | . . . 12 6 1 8 15 2 2 . . 10 . . 4 . 4 . 2 5 . 7 4 3 Drop 125 | . 1 . 19 8 3 17 10 . 2 . 1 15 . . 5 . 9 . 1 7 1 4 4 18 Fire 313 | . 6 5 107 43 9 . . 7 2 . . 13 6 . . . 25 . 11 2 1 . . 76 Melee 121 | . . . . . . . 30 9 2 . . 33 1 3 . 2 9 . . 21 6 . 2 3 Ram . | . . . . . . . . . . . . . . . . . . . . . . . . . Kick . | . . . . . . . . . . . . . . . . . . . . . . . . . Crush 1 | . . . 1 . . . . . . . . . . . . . . . . . . . . . Escape Stasis 136 | . . . . 16 . . 92 . . . . 16 . . . . 12 . . . . . . . Rewire . | . . . . . . . . . . . . . . . . . . . . . . . . . Trap . | . . . . . . . . . . . . . . . . . . . . . . . . . Miscellaneous 20 | . . . . . . . . . . . . . . . . . . . . . . . . 20 Route ------- -11/Scrapyard -10/Materials -10/Mines -9/Materials (discovered 2 exits: Min / *Sto) -9/Storage -9/Recycling (discovered 2 exits: [*Fac] / *Scr) -9/Scraptown -6/Factory (discovered 3 exits: *Fac / *Low x2) -6/Lower Caves -6/Lower Caves (discovered 2 exits: *Fac / *Dat) -6/Data Miner -5/Proximity Caves -5/Factory (discovered 4 exits: *Fac x2 / *Upp x2) -5/Upper Caves -5/Upper Caves (discovered 2 exits: *Fac / *Zhi) -5/Zhirov -4/Proximity Caves -4/Factory (discovered 3 exits: *Res / *Upp / Arm) -4/Waste -4/Factory (discovered 6 exits: *Res x3 / Upp x2 / Arm) -3/Research (discovered 2 exits: *Tes x2) -3/Testing -2/Research (discovered 2 exits: *Qua x2) -2/Quarantine (discovered 3 exits: [*Acc] / [*Sec] / *Frg) -2/Protoforge History --------- Turn | Location | Event 9 | -11/Scrapyard | Discovered new exit (range 15) 68 | -11/Scrapyard | Entered Materials 107 | -10/Materials | Discovered new exit (range 15) 294 | -10/Materials | Entered Mines 305 | -10/Mines | Build established: Mutant 322 | -10/Mines | Assembled infested the area 327 | -10/Mines | Assisted by a Guerilla fighting off Assembled 494 | -10/Mines | Discovered new exit (range 16) 511 | -10/Mines | Entered Materials 511 | -9/Materials | Evolved 2 slots: Propulsion x1, Utility x1 1118 | -9/Materials | Identified exit to Mines 1118 | -9/Materials | Identified exit to Storage 1265 | -9/Materials | Entered Storage 1278 | -9/Storage | Identified exit to Recycling 1534 | -9/Storage | Build established: Scavenger-Mutant 1737 | -9/Storage | Used back door to open Recycling access 1740 | -9/Storage | Entered Recycling 1890 | -9/Recycling | Core integrity fell below 50% 2015 | -9/Recycling | Discovered new exit (range 15) 2383 | -9/Recycling | Scanned before Scraplab entrance 2401 | -9/Recycling | Entered Scraplab 2413 | -9/Recycling | Discovered new exit (range 3) 2415 | -9/Recycling | Entered Scraptown 2741 | -9/Scraptown | Received an X-ray algorithm 2758 | -9/Scraptown | Visited UFD Registry 2758 | -9/Scraptown | Registered with UFD as "Quantumgunner" 2777 | -9/Scraptown | Visited The Evicted 2818 | -9/Scraptown | Visited Fellowship of the Rings 2859 | -9/Scraptown | Visited Assassins FH 2872 | -9/Scraptown | Visited Cyclists 2881 | -9/Scraptown | Entered Cyclist Reading Room 2972 | -9/Scraptown | Visited Derelict Rescue Squad 2993 | -9/Scraptown | Visited Chapter 10 3015 | -9/Scraptown | Visited DA-N13 Charitable Foundation 3020 | -9/Scraptown | Found DCF Scrap (28 items) 3091 | -9/Scraptown | Visited Supply Room 3135 | -9/Scraptown | Visited Modified Component R&D 3244 | -9/Scraptown | Visited Research Penetration Think Tank 3319 | -9/Scraptown | Build established: Mutant 3335 | -9/Scraptown | Visited Junk Repository 3387 | -9/Scraptown | Visited Infowarlord's Domain 3418 | -9/Scraptown | Visited Scrapoid Pod Storage 3695 | -9/Scraptown | Found Active Sensor Suite 3739 | -9/Scraptown | Met Optimus 3739 | -9/Scraptown | Accepted into 0bPrime 3754 | -9/Scraptown | Discovered new exit (range 3) 3755 | -9/Scraptown | Entered Factory 3755 | -6/Factory | Evolved 6 slots: Propulsion x2, Utility x4 4084 | -6/Factory | Spotted B-75 Beast 4144 | -6/Factory | Discovered new exit (range 16) 4181 | -6/Factory | Identified exit to Lower Caves 4191 | -6/Factory | Loaded intel: 8 recycling unit locations 4288 | -6/Factory | Discovered new exit (range 22) 4320 | -6/Factory | Learned location of Protoforge (-2) 4460 | -6/Factory | Discovered exit to Lower Caves (range 4) 4585 | -6/Factory | Entered Lower Caves 4743 | -6/Lower Caves | Build established: Scout 4842 | -6/Lower Caves | Identified exit to Lower Caves 4870 | -6/Lower Caves | Encountered a Warlord checkpoint 4959 | -6/Lower Caves | Entered another Lower Caves area 4977 | -6/Lower Caves | Discovered new exit (range 9) 4979 | -6/Lower Caves | Identified exit to Factory 5007 | -6/Lower Caves | Encountered a Warlord checkpoint 5059 | -6/Lower Caves | Attracted the attention of an 0b10 outpost 5138 | -6/Lower Caves | Identified exit to Data Miner 5150 | -6/Lower Caves | Entered Data Miner 5150 | -6/Data Miner | Discovered new exit (range 6) 5156 | -6/Data Miner | Met Data Miner 5166 | -6/Data Miner | Learned location of Section 7 (-2) 5166 | -6/Data Miner | Acquired the access code to Warlord's prototype stash 5170 | -6/Data Miner | Received God Mode back door access code from Data Miner 5176 | -6/Data Miner | Identified exit to Proximity Caves 5176 | -6/Data Miner | Entered Proximity Caves 5221 | -5/Proximity Caves | Learned Factory stockpile data 5234 | -5/Proximity Caves | Entered Factory 5234 | -5/Factory | Evolved 2 slots: Power x1, Utility x1 5416 | -5/Factory | Discovered new exit (range 10) 5423 | -5/Factory | Identified exit to Factory 5509 | -5/Factory | Loaded intel: 8 recycling unit locations 5634 | -5/Factory | Destroyed 9 combat bots 5701 | -5/Factory | Discovered new exit (range 3) 5919 | -5/Factory | Build established: Hacker-Scout 5921 | -5/Factory | Identified exit to Upper Caves 6020 | -5/Factory | Spotted B-75 Beast 6034 | -5/Factory | Incoming investigation squad redirected 6043 | -5/Factory | Incoming investigation squad redirected 6134 | -5/Factory | Search patrols dispatched 6206 | -5/Factory | Discovered exit to Factory (range 12) 6230 | -5/Factory | Entered Upper Caves 6246 | -5/Upper Caves | Spotted B-75 Beast 6374 | -5/Upper Caves | Discovered new exit (range 15) 6377 | -5/Upper Caves | Learned Factory garrison access intel 6378 | -5/Upper Caves | Attracted the attention of an 0b10 outpost 6378 | -5/Upper Caves | Identified exit to Upper Caves 6378 | -5/Upper Caves | Entered another Upper Caves area 6380 | -5/Upper Caves | Discovered exit to Factory (range 5) 6509 | -5/Upper Caves | Attracted the attention of an 0b10 outpost 6513 | -5/Upper Caves | Learned Factory stockpile data 6663 | -5/Upper Caves | Attacked by a delusional Derelict stockpiling parts 6691 | -5/Upper Caves | Discovered new exit (range 16) 6696 | -5/Upper Caves | Identified exit to Zhirov 6721 | -5/Upper Caves | Entered Zhirov 6721 | -5/Zhirov | Discovered new exit (range 3) 6726 | -5/Zhirov | Met Zhirov 6732 | -5/Zhirov | Ran an X-ray algorithm 6732 | -5/Zhirov | Learned location of Quarantine (-2) 6732 | -5/Zhirov | Learned location of Testing (-3) 6732 | -5/Zhirov | Learned location of Command (-1) 6733 | -5/Zhirov | Zhirov requested help retrieving the SGEMP Prototype 6737 | -5/Zhirov | Found Alien Artifact 6737 | -5/Zhirov | Identified Integrated Dissipator 6737 | -5/Zhirov | Installed Integrated Dissipator, increased core heat dissipation (+20) 6783 | -5/Zhirov | Found Alien Artifact 6793 | -5/Zhirov | Identified exit to Proximity Caves 6793 | -5/Zhirov | Entered Proximity Caves 6825 | -4/Proximity Caves | Attracted the attention of an 0b10 checkpoint 6999 | -4/Proximity Caves | Discovered exit to Factory (range 15) 7015 | -4/Proximity Caves | Entered Factory 7015 | -4/Factory | Evolved 2 slots: Propulsion x1, Utility x1 7016 | -4/Factory | Identified exit to Armory 7018 | -4/Factory | Loaded intel: 4 garrison access locations 7160 | -4/Factory | Discovered new exit (range 8) 7163 | -4/Factory | Identified exit to Upper Caves 7206 | -4/Factory | Loaded intel: 8 recycling unit locations 7224 | -4/Factory | Incoming investigation squad redirected 7263 | -4/Factory | Spotted B-86 Titan 7448 | -4/Factory | Discovered new exit (range 6) 7449 | -4/Factory | Identified exit to Research 7515 | -4/Factory | Search patrols dispatched 7566 | -4/Factory | Incoming investigation squad redirected 7579 | -4/Factory | Sucked down chute 7579 | -4/Factory | Entered Waste 7584 | -4/Waste | Spotted C-40 Crusher 7590 | -4/Waste | Spotted C-40 Crusher 7590 | -4/Waste | Spotted C-40 Crusher 7590 | -4/Waste | Spotted C-40 Crusher 7591 | -4/Waste | Spotted C-40 Crusher 7591 | -4/Waste | Discovered new exit (range 16) 7592 | -4/Waste | Identified exit to Factory 7592 | -4/Waste | Entered Factory 7724 | -4/Factory | Loaded intel: 8 recycling unit locations 7763 | -4/Factory | Discovered exit to Research (range 12) 7830 | -4/Factory | Lost 3 parts (2n1u) 7842 | -4/Factory | Search patrols dispatched 7854 | -4/Factory | Discovered exit to Research (range 5) 7969 | -4/Factory | Incoming investigation squad redirected 7979 | -4/Factory | Lost 3 parts (1p1n1u) 7991 | -4/Factory | Identified Transdimensional Reconstructor 7991 | -4/Factory | Warped through subspace 8009 | -4/Factory | Discovered exit to Research (range 5) 8034 | -4/Factory | Lost 4 parts (3n1u) 8049 | -4/Factory | Entered Research 8049 | -3/Research | Evolved 2 slots: Utility x1, Weapon x1 8191 | -3/Research | Incoming investigation squad redirected 8199 | -3/Research | Found Prototype Processor 8199 | -3/Research | Identified Exp. Melee Analysis Suite 8267 | -3/Research | Incoming investigation squad redirected 8297 | -3/Research | Spotted B-86 Titan 8299 | -3/Research | Search patrols dispatched 8364 | -3/Research | Incoming investigation squad redirected 8418 | -3/Research | Identified exit to Testing 8478 | -3/Research | Loaded intel: 5 recycling unit locations 8530 | -3/Research | Entered Testing 8558 | -3/Testing | Spotted PL-49DOMM7CAK 8613 | -3/Testing | Discovered new exit (range 13) 8631 | -3/Testing | Entered Research 8631 | -2/Research | Accompanied by 1 ally 8631 | -2/Research | Evolved 2 slots: Weapon x2 8641 | -2/Research | Found Prototype Processor 8641 | -2/Research | Identified Exp. Core Analyzer 8647 | -2/Research | Loaded intel: 5 recycling unit locations 8683 | -2/Research | Identified exit to Quarantine 8722 | -2/Research | Entered Quarantine 8733 | -2/Quarantine | Found Alien Artifact 8793 | -2/Quarantine | Discovered new exit (range 9) 8799 | -2/Quarantine | Spotted Alpha 7 8819 | -2/Quarantine | Spotted Fortress 8829 | -2/Quarantine | Discovered new exit (range 6) 8829 | -2/Quarantine | Discovered new exit (range 6) 8829 | -2/Quarantine | Entered Protoforge 8846 | -2/Protoforge | Spotted B-90 Cyclops 8855 | -2/Protoforge | Superfortress began startup sequence 8856 | -2/Protoforge | Spotted AP7-3 8856 | -2/Protoforge | Spotted AP7-3 8859 | -2/Protoforge | Spotted EXE-6 8859 | -2/Protoforge | Spotted EXE-6 8860 | -2/Protoforge | Spotted SKR-2 8860 | -2/Protoforge | Spotted SKR-2 8860 | -2/Protoforge | Spotted SKR-2 8865 | -2/Protoforge | UFD initiated attack on Protoforge 8865 | -2/Protoforge | Loaded intel: 3 recycling unit locations 8885 | -2/Protoforge | Spotted EXE-6 8892 | -2/Protoforge | Scraphulk reinforcements arrived? 8901 | -2/Protoforge | Optimus greeted in Protoforge 8904 | -2/Protoforge | Scraphulk reinforcements arrived? 8916 | -2/Protoforge | Found Prototype Device 8916 | -2/Protoforge | Identified Exp. Kinecellerator 8918 | -2/Protoforge | Found Prototype Ballistic Gun 8922 | -2/Protoforge | Found Exp. Kinecellerator 8923 | -2/Protoforge | Identified Cep. XC Strikerail 8942 | -2/Protoforge | Lost 8 allies 8983 | -2/Protoforge | Lost 10 parts (4n5u1w) 8992 | -2/Protoforge | Found Exp. Core Analyzer 8995 | -2/Protoforge | Found Cep. XC Strikerail 9001 | -2/Protoforge | Met 7R-MNS 9005 | -2/Protoforge | Found Exp. Core Analyzer 9061 | -2/Protoforge | Lost 5 allies 9142 | -2/Protoforge | Spotted Immortal 9145 | -2/Protoforge | Spotted Immortal 9151 | -2/Protoforge | Destroyed Immortal 9160 | -2/Protoforge | Destroyed Immortal 9190 | -2/Protoforge | Spotted Executioner 9196 | -2/Protoforge | Spotted Striker 9203 | -2/Protoforge | Spotted Striker 9206 | -2/Protoforge | Allies destroyed Executioner 9207 | -2/Protoforge | Destroyed Striker 9207 | -2/Protoforge | Spotted Executioner 9208 | -2/Protoforge | Core integrity fell below 50% 9228 | -2/Protoforge | Allies destroyed Striker 9263 | -2/Protoforge | Lost 6 parts (1p2n2u1w) 9320 | -2/Protoforge | Spotted Hotshot 9320 | -2/Protoforge | Spotted Executioner 9323 | -2/Protoforge | Spotted Hotshot 9327 | -2/Protoforge | Found 0bPrime Scrap Suit 9328 | -2/Protoforge | Spotted Executioner 9329 | -2/Protoforge | Spotted Executioner 9358 | -2/Protoforge | Spotted Hotshot 9359 | -2/Protoforge | Destroyed Hotshot 9361 | -2/Protoforge | Spotted Striker 9403 | -2/Protoforge | P-80 Master assimilated allied 02F72-D 9405 | -2/Protoforge | P-80 Master assimilated allied 02F69-D 9419 | -2/Protoforge | Spotted Executioner 9420 | -2/Protoforge | Destroyed Executioner 9444 | -2/Protoforge | Spotted Striker 9451 | -2/Protoforge | Destroyed Striker 9463 | -2/Protoforge | Found UFD Drillbomb 9467 | -2/Protoforge | Found UFD Drillbomb 9477 | -2/Protoforge | Lost 37 allies 9489 | -2/Protoforge | Found Prototype Device 9489 | -2/Protoforge | Identified Adv. Kinecellerator 9501 | -2/Protoforge | P-80 Master assimilated allied 02F75-D 9509 | -2/Protoforge | Spotted Executioner 9513 | -2/Protoforge | Destroyed Executioner 9545 | -2/Protoforge | Lost 3 allies 9547 | -2/Protoforge | Installed UFD Drillbomb at designated target 9547 | -2/Protoforge | UFD reported confirmed Drillbomb installation 9556 | -2/Protoforge | Found UFD Drillbomb 9589 | -2/Protoforge | Installed UFD Drillbomb at designated target 9589 | -2/Protoforge | UFD reported confirmed Drillbomb installation 9591 | -2/Protoforge | Spotted Striker 9601 | -2/Protoforge | Build established: Scavenger-Scrapper 9604 | -2/Protoforge | Destroyed Striker 9606 | -2/Protoforge | Spotted Striker 9645 | -2/Protoforge | Spotted Striker 9653 | -2/Protoforge | Spotted Executioner 9654 | -2/Protoforge | Spotted Striker 9657 | -2/Protoforge | Spotted Executioner 9693 | -2/Protoforge | Spotted Striker 9710 | -2/Protoforge | Destroyed Striker 9726 | -2/Protoforge | P-80 Master assimilated allied 02F94-D 9745 | -2/Protoforge | Self-destructed Last Messages --------------- 09732_ Slug penetrates Lugger 456. 09733_ N-04 Retriever collects Ovr. Beamcaster. 09733_ N-04 Retriever collects Scrap Suit. 09733_ Slug penetrates Lugger 456. 09733_ Lugger 456 destroyed. 09734_ N-04 Retriever collects Med. Treads. 09735_ N-04 Retriever collects Power Sword. 09735_ Slug penetrates Wall. 09735_ N-04 Retriever collects Scrap Suit. 09735_ N-04 Retriever collects Ovr. Railgun. 09738_ Slug penetrates 02F97-D. 09738_ Slug penetrates Reinforced Barrier. 09741_ Slug penetrates 02F95-D. 09742_ 02F95-D destroyed. 09744_ N-04 Retriever collects CPS Tube. 09744_ Slug penetrates JW-GV1(E). 09745_ Slug penetrates L-61 Swordsman. 09745_ W2-IG8(E) destroyed. 09745_ Slug penetrates Wall. 09745_ N-04 Retriever collects Neutrino Core. Map ----- +----------------------------------------------------+ | ###########?????????##????# "" % | | ###############?######????# """"% %" | | ?????????????????#####????# " % " " | | ?????????????????##???????# % " "% % """" | | ?????????????????#######??# """""% "" | | #############?##########??# " %""!% " | | ??????????#???????????##??# """" ]* | | ??????????#???????????##??# """" %% " " | | ??????????#???????????###?# " % "" | | ??????????#???????????###?# % "" " """ | | ??????????#????????????##?# % """" | | ??????????#???????????###?# " "" """"" | | ###########???????????###?# """" " """""" | | ??######################??# "" "" " """""" | | ??## # ######??# "" " n "" """""" | | ??## """" # ##??????# "" " """"""" | | ??## """" # ##??????# "" " """"""" | | ??## """" # ##??????# " % """"""" | | ??## """" # ##??????# % % """"""" | | #### " "" # ##??????# % """"""" | | ## # " "" # #####?###% "% %%""""""" | | # # ## ### # """ " %%""""""" | | """""""###!### !=![ ;#; # % """%%""""" "%""""""" | | %% !%!%%=[ ;;;!!%!*;% ;;# % "" %% """"""" | | = %%%*!%% !=[=!n % n%% %% % % """""" | | %%% !%%!%%%%%%% !%s%%%&%%@%%% % % """""" | | [= !%*!!%% % l% E%%%%% n%%%% %"%%%""% %"%%"""""" | | !!!]] !!%% ;;;;;#%#;; ;;#% %""%%" % " % %""""" | | ! !!& ! ! !%!" * ;#### % % %%%% % % """" | | %!![%!%= %% # ## ### % %"%% % % """ | | |[%*=!!% ==*"""" ## #??# "" %% %%%" %%%%%% "" | | = =""!!""" % ## ######??# "" % %"%% % %% " | | * """ "" % ####???????# "" n""% % % % % | | !=" %%% ##?????????# "% " % % %% | | % [%% ###########???# %%&% % %%%" % | | " """& ###########???# % " """ % %% " | | """% #? ##???# " """ % & % % | | """ """ # ##???# " %% | | % " ##???# " " "" " !&" | | # ##???# "% % | | # ##???# " " "" % | | % #? ##???# "" " " " [" | | """# !# ##?? ##???# " "" | | ## # # ##??? ##???# "" " " """" | | ?# # ##"##??? ##???# "" " " % | | ??## ###############???# "" %"" % | | ??## ##?############???# "%"" % | | ??## ##????????????????? "" % "% "" | | ??## ##??????????????????? """ " " " | | ??## ##????????????????????#### ############## | +----------------------------------------------------+ Best States ------------- Heat Dissipation 179 Energy Generation 45 Energy Capacity 640 Matter Stores 300 Matter Capacity 300 Sight Range 22 Robot Scan Range 20 Terrain Scan Density 10 Cloak Strength 2 Additional Mass Support 9 Corruption Block 20 Armor Coverage 300 Resistance: TH 30 Core Shielding 40 Propulsion Shielding 66 Utility Shielding 66 Phase Shifting 10 Evasion (%) 88 Core Analysis 12 Recoil Reduction 4 Kinecelleration 66 Offensive Hacking 14 Defensive Hacking 34 Item Schematics ----------------- Combat Drone Bay | -6/Data Miner | Free Lgt. Regenerative Plating | -6/Data Miner | Free Cld. Nuclear Pulse Thruster | -6/Data Miner | Free Hvy. Proton Cannon | -6/Data Miner | Free Imp. Energy Well | -6/Data Miner | Free Field Propulsion Array | -6/Data Miner | Free Adv. Thermal Shield | -6/Data Miner | Free Phase Gun | -6/Data Miner | Free Imp. Corruption Screen | -6/Data Miner | Free Imp. Linear Gravjet | -6/Data Miner | Free Hardcell Cannon | -6/Data Miner | Free Arm. Heavy Treads | -6/Data Miner | Free Linear Accelerator | -6/Data Miner | Free Assault Drone Bay | -5/Zhirov | Free Exp. Heat Sink | -5/Zhirov | Free Exp. Optical Array | -5/Zhirov | Free Imp. Arc Thrower | -5/Zhirov | Free Robot Schematics ------------------ Y-54 Guardian | -6/Data Miner | Free B-48 Gladiator | -6/Data Miner | Free Y-64 Sentinel | -6/Data Miner | Free L-61 Swordsman | -6/Data Miner | Free O-32 Director | -6/Data Miner | Free R-10 Processor | -6/Data Miner | Free Fabricated ------------ Nothing Repaired ---------- Nothing Alien Tech Used ----------------- Integrated Dissipator Transdimensional Reconstructor Achievements -------------- None Challenges ------------ None Game ------ Seed MagneticMasterInverter Manual? 0 Play Time 03:35:57 Cumulative 282.5 hours Start 2025.06.19 @ 18:36:39 End 2025.06.19 @ 22:54:27 Sessions 1 Manual Loads 0 Difficulty Rogue Special Mode None Game No. 144 Rogue 144 Adventurer 0 Explorer 0 Win Type - Total 5 Types 4/0/1/0/0/0/0/0/0/0 Lore% 79 Gallery% 78 Achievement% 65 Wizard Run 0 Options --------- Layout 1 ASCII 0 Keyboard 0 Movement Mouse Keybinds 0 Fullscreen 1 Font 24/Smallcaps Map View 50x35 Zoom Use 0% Tactical HUD 1 Map Filters NONE Filters NONE Steam 1 RUN: 82dbe732-c76f-47cf-9f73-2e9cf8958818